[Event "EYCC Open U8 2018"]
[Site "Riga"]
[Date "2018.08.20"]
[Round "1"]
[White "Udipi, Kala Kishan"]
[Black "Ivanov, Andrey A"]
[Result "0-1"]
[ECO "D31"]
[WhiteElo "1756"]
[BlackElo "2180"]
[Annotator "NA"]
[PlyCount "102"]
[EventDate "2018.08.20"]
[EventType "swiss"]
[EventCountry "LAT"]
[SourceTitle "playchess.com"]
[Source "ChessBase"]
[SourceQuality "1"]
[TimeControl "40/5400+30:1800+30"]

1. d4 {[%emt 0:00:00]} e6 {[%emt 0:01:35]} 2. c4 {[%emt 0:00:20]} d5 {[%emt 0:02:20]} 3. Nc3 {[%emt 0:00:42]} c6 {[%emt 0:01:43]} 4. e3 {[%emt 0:00:45]} Bd6 {[%emt 0:01:51]} 5. Nf3 {[%emt 0:00:29]} Nd7 {[%emt 0:02:13] LiveBook: 7 Games} 6. Be2 {[%emt 0:01:58]} f5 {[%emt 0:03:15]} 7. cxd5 {[%emt 0:01:57]} exd5 {[%emt 0:02:19]} 8. Bd3 {[%emt 0:03:41]} g6 {[%emt 0:03:14]} 9. Qc2 {[%emt 0:04:19]} Ngf6 $11 {[%emt 0:02:12]} 10. O-O {[%emt 0:04:51]} O-O {[%emt 0:02:28]} 11. Rb1 {[%emt 0:07:05]} Ne4 {[%emt 0:03:04]} 12. b4 {[%emt 0:09:31]} b5 {[%emt 0:03:15]} 13. Nxe4 {[%emt 0:10:36]} fxe4 {[%emt 0:01:24]} 14. Qxc6 {[%emt 0:00:20]} exf3 {[%emt 0:03:26]} 15. Qxd5+ {[%emt 0:00:46]} Kh8 {[%emt 0:01:16]} 16. Qxa8 {[%emt 0:01:12]} Qh4 {[%emt 0:01:00]} 17. h3 {[%emt 0:06:16]} Qg5 {[%emt 0:01:16]} 18. Qxf3 {[%emt 0:14:57]} Rxf3 {[%emt 0:01:53]} 19. e4 {[%emt 0:03:42]} Qh4 {[%emt 0:00:17]} 20. gxf3 {[%emt 0:00:44]} Qxh3 {[%emt 0:00:10]} 21. e5 {[%emt 0:00:11]} Nxe5 {[%emt 0:00:23]} 22. dxe5 {[%emt 0:01:06]} Qxf3 {[%emt 0:01:00]} 23. exd6 {[%emt 0:00:11]} Bh3 {[%emt 0:00:17]} 24. Bb2+ {[%emt 0:00:44]} Kg8 {[%emt 0:00:09]} 25. Be4 {[%emt 0:00:27]} Qxe4 {[%emt 0:00:19]} 26. f3 {[%emt 0:00:09]} Qh4 {[%emt 0:01:48]} 27. Be5 {[%emt 0:00:41]} Bxf1 {[%emt 0:01:36]} 28. Rxf1 {[%emt 0:00:59]} Qg5+ {[%emt 0:00:40]} 29. Kf2 {[%emt 0:00:10]} Qxe5 30. Rd1 {[%emt 0:00:13]} Qe8 {[%emt 0:01:39]} 31. d7 {[%emt 0:00:18]} Qd8 {[%emt 0:00:06]} 32. Kg3 {[%emt 0:00:44]} Kf7 {[%emt 0:00:26]} 33. Kf4 {[%emt 0:00:31]} Ke6 {[%emt 0:00:59]} 34. a3 {[%emt 0:01:41]} h6 35. Kg4 {[%emt 0:00:49]} Qxd7 {[%emt 0:00:32]} 36. Rxd7 {[%emt 0:00:19]} Kxd7 {[%emt 0:00:06]} 37. Kf4 {[%emt 0:00:25]} a6 {[%emt 0:00:48]} 38. Ke5 {[%emt 0:00:23]} h5 {[%emt 0:00:14]} 39. Kf4 {[%emt 0:01:18]} Kd6 {[%emt 0:00:20]} 40. Kg5 {[%emt 0:00:00]} Kd5 {[%emt 0:00:00]} 41. Kf4 {[%emt 0:04:38]} h4 {[%emt 0:01:15]} 42. Kg4 {[%emt 0:00:11]} g5 {[%emt 0:00:06]} 43. f4 {[%emt 0:00:31]} gxf4 {[%emt 0:00:11]} 44. Kxf4 {[%emt 0:00:08]} Kc4 {[%emt 0:00:05]} 45. Kg4 {[%emt 0:00:12]} Kb3 {[%emt 0:00:05]} 46. Kxh4 {[%emt 0:00:09]} Kxa3 {[%emt 0:00:04]} 47. Kg4 {[%emt 0:00:16]} Kxb4 {[%emt 0:00:07]} 48. Kf3 {[%emt 0:00:07]} Kc3 {[%emt 0:00:14]} 49. Ke2 {[%emt 0:00:07]} Kc2 {[%emt 0:00:21]} 50. Ke3 {[%emt 0:00:06]} b4 {[%emt 0:00:11]} 51. Kd4 {[%emt 0:00:06]} b3 {[%emt 0:00:09]} 0-1

[Event "EYCC Open U8 2018"]
[Site "Riga"]
[Date "2018.08.20"]
[Round "1"]
[White "Hajdu, Marton Abris"]
[Black "Kovaler, Filipp"]
[Result "1-0"]
[ECO "B13"]
[WhiteElo "1694"]
[BlackElo "1113"]
[Annotator "NA"]
[PlyCount "51"]
[EventDate "2018.08.20"]
[EventType "swiss"]
[EventCountry "LAT"]
[SourceTitle "playchess.com"]
[Source "ChessBase"]
[SourceQuality "1"]
[TimeControl "40/5400+30:1800+30"]

1. e4 c6 {[%emt 0:00:00]} 2. d4 {[%emt 0:00:00]} d5 {[%emt 0:00:00]} 3. exd5 {[%emt 0:00:00]} cxd5 {[%emt 0:00:00]} 4. c4 {[%emt 0:00:00]} Nf6 {[%emt 0:00:10]} 5. Nc3 {[%emt 0:00:00]} Nc6 {[%emt 0:00:12]} 6. Nf3 {[%emt 0:00:20]} Bg4 {[%emt 0:00:32]} 7. cxd5 {[%emt 0:00:54]} Nxd5 {[%emt 0:00:24]} 8. Qb3 {[%emt 0:00:19]} Bxf3 {[%emt 0:01:06]} 9. gxf3 {[%emt 0:00:06]} Nb6 {[%emt 0:02:09]} 10. d5 {[%emt 0:08:25]} Ne5 {[%emt 0:10:17]} 11. Bb5+ {[%emt 0:00:43]} Ned7 {[%emt 0:00:39]} 12. Bf4 {[%emt 0:05:59]} Rc8 {[%emt 0:08:23]} 13. O-O {[%emt 0:03:34]} g6 {[%emt 0:01:18]} 14. Rfe1 {[%emt 0:00:30]} Bg7 {[%emt 0:00:28]} 15. Bd6 {[%emt 0:04:38]} Bf6 {[%emt 0:02:10]} 16. Bxe7 {[%emt 0:04:31]} Bxe7 {[%emt 0:01:33]} 17. d6 {[%emt 0:01:04]} O-O {[%emt 0:03:01]} 18. dxe7 {[%emt 0:01:43]} Qc7 {[%emt 0:01:42]} 19. exf8=Q+ {[%emt 0:03:01]} Rxf8 {[%emt 0:00:17]} 20. Nd5 {[%emt 0:00:48]} Nxd5 {[%emt 0:00:24]} 21. Qxd5 {[%emt 0:00:07]} Nf6 {[%emt 0:00:23]} 22. Qe5 {[%emt 0:00:25]} Qb6 {[%emt 0:00:30]} 23. Rad1 {[%emt 0:00:45]} a6 {[%emt 0:00:57]} 24. Rd6 {[%emt 0:00:15]} Qxb5 {[%emt 0:01:38]} 25. Qxb5 axb5 {[%emt 0:00:12]} 26. Rxf6 {[%emt 0:00:11]} 1-0

[Event "EYCC Open U8 2018"]
[Site "Riga"]
[Date "2018.08.20"]
[Round "1"]
[White "Golovchenko, Bogdan"]
[Black "Sarafis, Rafail"]
[Result "1-0"]
[ECO "B01"]
[WhiteElo "1560"]
[BlackElo "1047"]
[Annotator "NA"]
[PlyCount "103"]
[EventDate "2018.08.20"]
[EventType "swiss"]
[EventCountry "LAT"]
[SourceTitle "playchess.com"]
[Source "ChessBase"]
[SourceQuality "1"]
[TimeControl "40/5400+30:1800+30"]

1. e4 {[%emt 0:00:00]} d5 {[%emt 0:00:00]} 2. exd5 {[%emt 0:00:00]} Qxd5 {[%emt 0:00:00]} 3. Nc3 {[%emt 0:00:00]} Qd6 {[%emt 0:00:00]} 4. Nf3 {[%emt 0:00:08]} Nf6 {[%emt 0:00:31]} 5. d4 {[%emt 0:00:42]} c6 {[%emt 0:00:20]} 6. Be3 {[%emt 0:00:38]} Bf5 {[%emt 0:01:05]} 7. Bd3 {[%emt 0:00:33]} Bxd3 {[%emt 0:00:59]} 8. Qxd3 {[%emt 0:00:07]} e6 {[%emt 0:00:24]} 9. O-O {[%emt 0:09:45]} Be7 {[%emt 0:03:06]} 10. Ne5 {[%emt 0:01:26]} Nbd7 {[%emt 0:00:46]} 11. Bf4 {[%emt 0:01:22]} Nxe5 {[%emt 0:05:18]} 12. Bxe5 {[%emt 0:01:24]} Qd7 {[%emt 0:01:13]} 13. f4 {[%emt 0:00:42]} Rd8 {[%emt 0:04:36]} 14. Ne2 {[%emt 0:00:58]} O-O {[%emt 0:03:04]} 15. c4 {[%emt 0:01:19]} c5 {[%emt 0:03:13]} 16. Rad1 {[%emt 0:03:16]} Ng4 {[%emt 0:06:34]} 17. Rf3 {[%emt 0:08:59]} Nxe5 {[%emt 0:04:27]} 18. fxe5 {[%emt 0:00:13]} f6 {[%emt 0:05:36]} 19. Rh3 {[%emt 0:00:53]} h6 {[%emt 0:06:06]} 20. Qg6 {[%emt 0:02:10]} Qe8 {[%emt 0:04:42]} 21. Qg3 {[%emt 0:01:01]} cxd4 {[%emt 0:02:04]} 22. Rxh6 {[%emt 0:01:00]} Bc5 {[%emt 0:02:05]} 23. Rd3 {[%emt 0:00:06]} fxe5 {[%emt 0:01:23]} 24. Qxe5 {[%emt 0:02:14]} Qe7 {[%emt 0:02:24]} 25. Rg6 {[%emt 0:07:00]} Rf7 {[%emt 0:05:26]} 26. Rxe6 {[%emt 0:01:17]} Bd6 {[%emt 0:01:18]} 27. Rxe7 {[%emt 0:00:35]} Bxe5 {[%emt 0:02:15]} 28. Rxe5 {[%emt 0:00:07]} Rdf8 {[%emt 0:00:36]} 29. Rf3 {[%emt 0:00:42]} Rxf3 {[%emt 0:01:44]} 30. gxf3 {[%emt 0:00:06]} d3 {[%emt 0:01:18]} 31. Nc3 {[%emt 0:01:09]} Rd8 {[%emt 0:00:57]} 32. Rd5 {[%emt 0:00:13]} Rxd5 {[%emt 0:01:22]} 33. cxd5 {[%emt 0:00:06]} d2 {[%emt 0:00:19]} 34. Kf2 {[%emt 0:00:07]} b5 {[%emt 0:00:19]} 35. Ke2 {[%emt 0:00:13]} b4 {[%emt 0:00:11]} 36. Ne4 {[%emt 0:00:04]} Kf7 {[%emt 0:00:43]} 37. Kxd2 {[%emt 0:00:08]} Ke7 {[%emt 0:00:29]} 38. f4 {[%emt 0:00:11]} a5 {[%emt 0:00:43]} 39. f5 {[%emt 0:00:00]} a4 {[%emt 0:00:00]} 40. h4 {[%emt 0:00:00]} b3 {[%emt 0:00:00]} 41. a3 {[%emt 0:00:34]} Kf7 {[%emt 0:01:07]} 42. h5 {[%emt 0:00:17]} Ke7 {[%emt 0:00:25]} 43. f6+ {[%emt 0:00:12]} gxf6 {[%emt 0:00:20]} 44. h6 {[%emt 0:00:04]} Kf7 {[%emt 0:00:27]} 45. h7 {[%emt 0:00:09]} Kg7 {[%emt 0:00:18]} 46. Nxf6 {[%emt 0:00:07]} Kh8 {[%emt 0:00:30]} 47. d6 {[%emt 0:00:07]} Kg7 {[%emt 0:00:14]} 48. d7 {[%emt 0:00:09]} Kxf6 {[%emt 0:00:20]} 49. h8=Q+ {[%emt 0:00:09]} Kg5 {[%emt 0:00:30]} 50. d8=Q+ {[%emt 0:00:07]} Kg4 {[%emt 0:00:19]} 51. Qhh4+ {[%emt 0:00:10]} Kf3 {[%emt 0:01:12]} 52. Qd5# {[%emt 0:00:09]} 1-0

[Event "EYCC Open U8 2018"]
[Site "Riga"]
[Date "2018.08.20"]
[Round "1"]
[White "Filipe, Gustavo Castro"]
[Black "Azadaliyev, Jahandar"]
[Result "0-1"]
[ECO "B17"]
[WhiteElo "1114"]
[BlackElo "1732"]
[Annotator "NA"]
[PlyCount "94"]
[EventDate "2018.08.20"]
[EventType "swiss"]
[EventCountry "LAT"]
[SourceTitle "playchess.com"]
[Source "ChessBase"]
[SourceQuality "1"]
[TimeControl "40/5400+30:1800+30"]

1. e4 {[%emt 0:00:00]} c6 {[%emt 0:00:00]} 2. d4 {[%emt 0:00:18]} d5 {[%emt 0:00:01]} 3. Nc3 {[%emt 0:00:44]} dxe4 {[%emt 0:01:04]} 4. Nxe4 {[%emt 0:00:24]} Nd7 {[%emt 0:00:13]} 5. Nf3 {[%emt 0:02:01]} Ngf6 {[%emt 0:00:15]} 6. Ng3 {[%emt 0:01:10]} c5 {[%emt 0:03:46]} 7. dxc5 {[%emt 0:05:22]} e6 {[%emt 0:00:08]} 8. Be3 {[%emt 0:01:40]} Qc7 {[%emt 0:02:43]} 9. Bd3 {[%emt 0:05:29]} Bxc5 {[%emt 0:00:30]} 10. Bxc5 {[%emt 0:01:12]} Qxc5 {[%emt 0:00:21]} 11. Ne4 {[%emt 0:01:29]} Nxe4 {[%emt 0:00:14]} 12. Bxe4 {[%emt 0:00:15]} Nf6 {[%emt 0:02:28]} 13. Bd3 {[%emt 0:02:39]} O-O {[%emt 0:01:58]} 14. O-O {[%emt 0:02:54]} b6 {[%emt 0:00:09]} 15. Qe2 {[%emt 0:01:25]} Bb7 {[%emt 0:00:29]} 16. Rad1 {[%emt 0:01:49]} Rad8 {[%emt 0:02:31]} 17. c3 {[%emt 0:03:37]} Qh5 {[%emt 0:07:50]} 18. h3 {[%emt 0:02:04]} Bxf3 {[%emt 0:04:00]} 19. Qxf3 {[%emt 0:00:20]} Qxf3 {[%emt 0:00:34]} 20. gxf3 {[%emt 0:00:09]} Nh5 {[%emt 0:00:48]} 21. Bc2 {[%emt 0:00:50]} Nf4 {[%emt 0:00:10]} 22. Kh2 {[%emt 0:01:03]} g6 {[%emt 0:02:13]} 23. Be4 {[%emt 0:06:30]} Kg7 {[%emt 0:00:41]} 24. Kg3 {[%emt 0:00:34]} Ne2+ {[%emt 0:00:08]} 25. Kg2 {[%emt 0:01:12]} f5 {[%emt 0:00:45]} 26. Bc2 {[%emt 0:00:57]} e5 {[%emt 0:00:28]} 27. Rfe1 {[%emt 0:00:40]} Nf4+ {[%emt 0:00:41]} 28. Kg3 {[%emt 0:02:14]} Kf6 {[%emt 0:00:23]} 29. h4 {[%emt 0:00:56]} h5 {[%emt 0:01:25]} 30. Bb3 {[%emt 0:01:05]} Rfe8 {[%emt 0:04:48]} 31. Ba4 {[%emt 0:03:02]} Rg8 {[%emt 0:01:25]} 32. Bb3 {[%emt 0:00:48]} Rgf8 {[%emt 0:00:11]} 33. Bc2 {[%emt 0:01:06]} Ne6 {[%emt 0:00:49]} 34. b4 {[%emt 0:01:15]} g5 {[%emt 0:00:18]} 35. Kh3 {[%emt 0:01:54]} Nf4+ {[%emt 0:02:56]} 36. Kg3 {[%emt 0:02:49]} gxh4+ {[%emt 0:01:10]} 37. Kh2 {[%emt 0:01:29]} h3 {[%emt 0:00:35]} 38. Rg1 {[%emt 0:02:24]} Rg8 {[%emt 0:00:59]} 39. Rxg8 {[%emt 0:02:20]} Rxg8 {[%emt 0:00:06]} 40. Rg1 {[%emt 0:00:00]} Rg2+ {[%emt 0:00:00]} 41. Rxg2 {[%emt 0:04:27]} hxg2 {[%emt 0:03:21]} 42. c4 {[%emt 0:02:26]} h4 {[%emt 0:00:10]} 43. c5 {[%emt 0:00:53]} bxc5 {[%emt 0:00:00]} 44. bxc5 {[%emt 0:00:56]} h3 {[%emt 0:00:41]} 45. Ba4 {[%emt 0:03:14]} Ne2 {[%emt 0:00:13]} 46. Kxh3 {[%emt 0:01:44]} g1=Q {[%emt 0:00:08]} 47. Kh4 {[%emt 0:00:36]} Qh2# {[%emt 0:00:10]} 0-1

[Event "EYCC Open U8 2018"]
[Site "Riga"]
[Date "2018.08.20"]
[Round "1"]
[White "Hudak, Michal"]
[Black "Zverev, Lev"]
[Result "0-1"]
[ECO "C44"]
[WhiteElo "1079"]
[BlackElo "1682"]
[Annotator "NA"]
[PlyCount "60"]
[EventDate "2018.08.20"]
[EventType "swiss"]
[EventCountry "LAT"]
[SourceTitle "playchess.com"]
[Source "ChessBase"]
[SourceQuality "1"]
[TimeControl "40/5400+30:1800+30"]

1. e4 {[%emt 0:00:00]} e5 {[%emt 0:00:00]} 2. Nf3 {[%emt 0:00:18]} Nc6 {[%emt 0:00:00]} 3. c4 {[%emt 0:00:36]} Bc5 {[%emt 0:00:00]} 4. Nc3 {[%emt 0:00:40]} Nf6 {[%emt 0:00:00]} 5. Nxe5 {[%emt 0:01:27]} Nxe5 {[%emt 0:00:29]} 6. d4 {[%emt 0:00:44]} Bxd4 {[%emt 0:00:21]} 7. Qxd4 {[%emt 0:00:21]} d6 {[%emt 0:00:09]} 8. c5 {[%emt 0:06:22]} Nc6 {[%emt 0:01:31]} 9. Bb5 {[%emt 0:01:29]} O-O {[%emt 0:01:12]} 10. Bg5 {[%emt 0:01:05]} Nxd4 {[%emt 0:00:14]} 11. O-O {[%emt 0:00:38]} h6 {[%emt 0:00:50]} 12. Bh4 {[%emt 0:00:23]} g5 {[%emt 0:00:27]} 13. Bg3 {[%emt 0:00:51]} Nxb5 {[%emt 0:00:46]} 14. Nxb5 {[%emt 0:01:01]} Nxe4 {[%emt 0:00:08]} 15. f3 {[%emt 0:12:33]} Nxc5 {[%emt 0:00:35]} 16. Bf2 {[%emt 0:04:44]} b6 {[%emt 0:00:19]} 17. Bd4 {[%emt 0:00:40]} Ba6 {[%emt 0:00:15]} 18. a4 {[%emt 0:02:29]} c6 {[%emt 0:00:11]} 19. Nc3 {[%emt 0:10:01]} Bxf1 {[%emt 0:00:28]} 20. Rxf1 {[%emt 0:01:05]} Ne6 {[%emt 0:00:11]} 21. Be3 {[%emt 0:01:04]} d5 {[%emt 0:00:16]} 22. Ne2 {[%emt 0:00:52]} Qe7 {[%emt 0:00:15]} 23. f4 {[%emt 0:09:27]} Ng7 {[%emt 0:00:15]} 24. Kf2 {[%emt 0:01:14]} Nf5 {[%emt 0:00:07]} 25. Bd2 {[%emt 0:04:01]} Qc5+ {[%emt 0:00:07]} 26. Kf3 {[%emt 0:03:09]} Qc4 {[%emt 0:01:07]} 27. Bc3 {[%emt 0:07:56]} Qe4+ {[%emt 0:00:40]} 28. Kf2 {[%emt 0:02:27]} Qe3+ {[%emt 0:00:06]} 29. Ke1 {[%emt 0:00:26]} Rae8 {[%emt 0:00:12]} 30. Rf2 {[%emt 0:04:44]} Qc1# {[%emt 0:00:08]} 0-1

[Event "EYCC Open U8 2018"]
[Site "Riga"]
[Date "2018.08.21"]
[Round "2"]
[White "Azadaliyev, Jahandar"]
[Black "Cruceru Uceanu, Tudor Mihai"]
[Result "1-0"]
[ECO "D45"]
[WhiteElo "1732"]
[BlackElo "1257"]
[Annotator "NA RC"]
[PlyCount "53"]
[EventDate "2018.08.20"]
[EventType "swiss"]
[EventCountry "LAT"]
[SourceTitle "playchess.com"]
[Source "ChessBase"]
[SourceQuality "1"]
[TimeControl "40/5400+30:1800+30"]

1. d4 {[%emt 0:00:00]} d5 {[%emt 0:00:00]} 2. c4 {[%emt 0:00:00]} c6 {[%emt 0:00:00]} 3. e3 {[%emt 0:00:00]} Nf6 {[%emt 0:00:00]} 4. Nf3 {[%emt 0:00:00]} e6 {[%emt 0:00:02]} 5. Nc3 {[%emt 0:00:03]} Nbd7 {[%emt 0:00:05]} 6. Qc2 {[%emt 0:00:08]} Bd6 {[%emt 0:00:07]} 7. Bd3 {[%emt 0:00:05]} O-O {[%emt 0:00:10]} 8. O-O {[%emt 0:00:07]} e5 {[%emt 0:00:05]} 9. cxd5 {[%emt 0:00:04]} cxd5 {[%emt 0:00:21]} 10. e4 {[%emt 0:00:10]} dxe4 {[%emt 0:01:25]} 11. Nxe4 {[%emt 0:01:54]} Nxe4 {[%emt 0:00:28]} 12. Bxe4 {[%emt 0:00:07]} h6 {[%emt 0:00:20]} 13. Rd1 {[%emt 0:01:00]} exd4 {[%emt 0:07:45]} 14. Rxd4 {[%emt 0:00:53]} Bc5 {[%emt 0:00:25]} 15. Rd1 {[%emt 0:00:44]} Qb6 {[%emt 0:00:18]} 16. Rd5 {[%emt 0:10:20]} Re8 {[%emt 0:02:12]} 17. Bf5 {[%emt 0:01:51]} Bd6 {[%emt 0:01:45]} 18. Be3 {[%emt 0:00:24]} Rxe3 {[%emt 0:05:07]} 19. fxe3 {[%emt 0:00:15]} Qxe3+ {[%emt 0:00:07]} 20. Kh1 {[%emt 0:00:11]} Qf4 {[%emt 0:00:15]} 21. Rd4 {[%emt 0:00:25]} Qxd4 {[%emt 0:05:24]} 22. Nxd4 {[%emt 0:00:14]} Be5 {[%emt 0:00:16]} 23. Re1 {[%emt 0:00:19]} f6 {[%emt 0:00:12]} 24. Qb3+ {[%emt 0:00:22]} Kh8 {[%emt 0:00:15]} 25. Qf7 {[%emt 0:00:09]} g6 {[%emt 0:00:52]} 26. Ne6 {[%emt 0:00:22]} gxf5 27. Qg7# 1-0

[Event "EYCC Open U8 2018"]
[Site "Riga"]
[Date "2018.08.21"]
[Round "2"]
[White "Zverev, Lev"]
[Black "Ozen, Ilhami Goktug"]
[Result "0-1"]
[ECO "C13"]
[WhiteElo "1682"]
[BlackElo "1225"]
[Annotator "NA RC"]
[PlyCount "80"]
[EventDate "2018.08.20"]
[EventType "swiss"]
[EventCountry "LAT"]
[SourceTitle "playchess.com"]
[Source "ChessBase"]
[SourceQuality "1"]
[TimeControl "40/5400+30:1800+30"]

1. e4 {[%emt 0:00:00]} e6 {[%emt 0:00:00]} 2. d4 {[%emt 0:00:00]} d5 {[%emt 0:00:00]} 3. Nc3 {[%emt 0:00:00]} Nf6 {[%emt 0:00:00]} 4. Bg5 {[%emt 0:00:00]} Be7 {[%emt 0:00:03]} 5. e5 {[%emt 0:00:01]} Nfd7 {[%emt 0:00:18]} 6. h4 {[%emt 0:00:06]} O-O {[%emt 0:00:34]} 7. Bd3 {[%emt 0:00:36]} f6 {[%emt 0:00:44]} 8. exf6 {[%emt 0:00:24]} Bxf6 {[%emt 0:01:09]} 9. Bxf6 {[%emt 0:00:15]} Qxf6 {[%emt 0:00:15]} 10. Nf3 {[%emt 0:00:07]} c5 {[%emt 0:01:18]} 11. Nb5 {[%emt 0:00:49]} Nc6 {[%emt 0:01:10]} 12. c3 {[%emt 0:00:23]} a6 {[%emt 0:00:15]} 13. Na3 {[%emt 0:00:31]} e5 {[%emt 0:00:38]} 14. dxe5 {[%emt 0:00:12]} Ndxe5 {[%emt 0:00:10]} 15. Be2 {[%emt 0:00:14]} d4 {[%emt 0:03:05]} 16. Qd2 {[%emt 0:04:16]} Bg4 {[%emt 0:02:16]} 17. Nxe5 {[%emt 0:01:00]} Qxf2+ {[%emt 0:00:17]} 18. Kd1 {[%emt 0:00:05]} Nxe5 {[%emt 0:00:05]} 19. Bxg4 {[%emt 0:00:22]} Nxg4 {[%emt 0:00:21]} 20. Re1 {[%emt 0:01:51]} Ne3+ {[%emt 0:00:06]} 21. Kc1 {[%emt 0:00:07]} Qxh4 {[%emt 0:00:05]} 22. Nc2 {[%emt 0:11:02]} Rf2 {[%emt 0:00:08]} 23. Re2 {[%emt 0:00:05]} Raf8 {[%emt 0:01:15]} 24. Nxe3 {[%emt 0:00:09]} dxe3 {[%emt 0:00:11]} 25. Qxe3 {[%emt 0:03:27]} Rf1+ {[%emt 0:00:08]} 26. Kc2 {[%emt 0:00:09]} Rxa1 {[%emt 0:00:04]} 27. Qe6+ {[%emt 0:00:40]} Kh8 {[%emt 0:00:21]} 28. Qd7 {[%emt 0:04:45]} Qd8 {[%emt 0:00:39]} 29. Qxd8 {[%emt 0:00:27]} Rxd8 {[%emt 0:00:04]} 30. Re7 {[%emt 0:00:06]} Rxa2 {[%emt 0:00:05]} 31. Kb1 {[%emt 0:00:12]} Ra4 {[%emt 0:00:10]} 32. Rxb7 {[%emt 0:00:08]} Rg4 {[%emt 0:00:05]} 33. Ra7 {[%emt 0:00:18]} Rxg2 {[%emt 0:00:04]} 34. Rxa6 {[%emt 0:00:05]} h6 {[%emt 0:00:04]} 35. Rc6 {[%emt 0:00:06]} Rd5 {[%emt 0:00:07]} 36. Rc8+ {[%emt 0:00:08]} Kh7 {[%emt 0:00:05]} 37. Rc7 {[%emt 0:00:05]} h5 {[%emt 0:00:05]} 38. Ka2 {[%emt 0:00:18]} h4 {[%emt 0:00:11]} 39. Kb3 {[%emt 0:00:04]} h3 {[%emt 0:00:05]} 40. Kc4 {[%emt 0:00:00]} Rf5 {[%emt 0:00:00] Kd4} 0-1